fUST/lending_fUST_20240502
["ID","MTS","AMOUNT","RATE_DAILY","PERIOD"]
[325203478,1714581038983,-611.48398,0.00040908,2]
[325203479,1714581038993,-252.7509919,0.00041,2]
[325203480,1714581039002,-611.48397,0.00041438,2]
[325203481,1714581039011,-214.616746,0.00041553,120]
[325203482,1714581039020,-1541.1,0.00041677,3]
[325203483,1714581039030,-611.48398,0.00041969,2]
[325203484,1714581039039,-154.84515485,0.0004234,10]
[325203485,1714581039049,-152.70730249,0.00042422,30]
[325203486,1714581039058,-611.48397,0.00042499,2]
[325203487,1714581039068,-781.66554329,0.00043,120]
[325203488,1714581039077,-166.0,0.00043,90]
[325203489,1714581039092,-288.37604007,0.00043,2]
[325203490,1714581039101,-611.48397,0.00043029,2]
[325203491,1714581039110,-14806.24,0.00043066,3]
[325203492,1714581039119,-26444.79811013,0.00043096,30]
[325203493,1714581039128,-152.03937723,0.00043096,2]
[325203494,1714581039137,-8832.73338726,0.00043096,2]
[325203495,1714581039146,-2130.63789699,0.00043096,2]
[325203496,1714581039155,-2868.31014036,0.00043096,2]
[325203497,1714581039164,-1003.60519772,0.00043096,2]
[325203498,1714581039173,-183.10509946,0.00043096,30]
[325203499,1714581039184,-2896.99907064,0.00043096,7]
[325203500,1714581039193,-2474.89031521,0.00043096,30]
[325203501,1714581039203,-1010.02308422,0.00043096,4]
[325203502,1714581039212,-250.0,0.00043096,7]
[325203503,1714581039223,-250.0,0.00043096,14]
[325203504,1714581039233,-165.8168504,0.00043096,52]
[325203505,1714581039244,-165.8168504,0.00043096,52]
[325203506,1714581039254,-500.0,0.00043096,14]
[325203507,1714581039264,-502.90835576,0.00043096,15]
[325203508,1714581039273,-418.28846301,0.000431,7]
[325203509,1714581039282,-418.28846301,0.000431,7]
[325203510,1714581039292,-418.28846301,0.000431,7]
[325203511,1714581039301,-418.28846301,0.000431,7]
[325203512,1714581039310,-418.28846301,0.000431,7]
[325203513,1714581039319,-418.28846301,0.000431,7]
[325203514,1714581039328,-418.28846301,0.000431,7]
[325203515,1714581039338,-418.28846301,0.000431,7]
[325203516,1714581039346,-418.28846301,0.000431,7]
[325203517,1714581039355,-418.28846301,0.000431,7]
[325203518,1714581039365,-418.28846301,0.000431,7]
[325203519,1714581039374,-418.28846301,0.000431,7]
[325203520,1714581039383,-418.28846301,0.000431,7]
[325203521,1714581039393,-418.28846301,0.000431,7]
[325203522,1714581039402,-418.28846301,0.000431,7]
[325203523,1714581039411,-418.28846301,0.000431,7]
[325203524,1714581039419,-418.28846301,0.000431,7]
[325203525,1714581039428,-418.28846301,0.000431,7]
[325203526,1714581039440,-418.28846301,0.000431,7]
[325203527,1714581039449,-418.28846,0.000431,7]
[325203528,1714581039458,-152.90186699,0.00043263,30]
[325203529,1714581039467,-611.48398,0.0004356,2]
[325203530,1714581039476,-393.76923353,0.00043706,30]
[325203531,1714581039485,-161.98182993,0.00044055,3]
[325203532,1714581039494,-611.48397,0.0004409,2]
[325203533,1714581039504,-200.0,0.0004428,120]
[325203534,1714581039514,-447.1154192,0.00044417,120]
[325203535,1714581039523,-500.0,0.00044417,120]
[325203536,1714581039532,-249.16180833,0.00044417,120]
[325203537,1714581039543,-210.06532862,0.00044417,120]
[325203538,1714581039552,-1041.47,0.00044418,7]
[325203539,1714581039562,-1041.47,0.00044418,10]
[325203540,1714581039575,-1041.47,0.00044418,13]
[325203541,1714581039585,-1041.47,0.00044418,16]
[325203542,1714581039594,-1041.47,0.00044418,19]
[325203543,1714581039603,-756.93644427,0.00044501,4]
[325203544,1714581039614,-303.86860129,0.00044501,15]
[325203545,1714581039623,-611.48398,0.0004462,2]
[325203546,1714581039632,-678.84875025,0.00044645,11]
[325203547,1714581039641,-166.0,0.00044877,90]
[325203548,1714581039650,-1513.5449,0.00045,60]
[325203549,1714581039660,-151.0,0.00045,120]
[325203550,1714581039671,-611.48397,0.00045151,2]
[325203551,1714581039681,-611.48398,0.00045681,2]
[325203553,1714581039693,-151.0,0.00045726,120]
[325203554,1714581039702,-611.48397,0.00046211,2]
[325203555,1714581039712,-151.0,0.00046438,120]
[325203556,1714581039721,-611.48398,0.00046742,2]
[325203557,1714581039731,-150.064,0.00046926,2]
[325203558,1714581039740,-1041.47,0.00046999,22]
[325203559,1714581039749,-166.0,0.00047121,90]
[325203560,1714581039759,-151.0,0.00047151,120]
[325203561,1714581039768,-611.48397,0.00047272,2]
[325203562,1714581039777,-150.0,0.00047283,2]
[325203563,1714581039787,-307.6798797,0.00047386,2]
[325203564,1714581039797,-214.616746,0.00047489,120]
[325203565,1714581039806,-611.48397,0.00047802,2]
[325203566,1714581039816,-151.0,0.00047863,120]
[325203567,1714581039825,-1000.0,0.00048,2]
[325203569,1714581039834,-268.39235719,0.00048,2]
[325203570,1714581039844,-2000.0,0.000481,2]
[325203571,1714581039854,-1041.47,0.00048199,25]
[325203572,1714581039863,-2764.33829863,0.000482,61]
[325203573,1714581039874,-49156.03092694,0.000482,2]
[325203574,1714581039884,-88888.0,0.000482,5]
[325203575,1714581039894,-1406.86817884,0.00048299,7]
[325203576,1714581039902,-681.04,0.00048299,7]
[325203577,1714581039913,-1041.47,0.00048299,28]
[325203578,1714581039922,-1041.47,0.00048299,31]
[325203579,1714581039931,-1041.47,0.00048299,34]
[325203580,1714581039942,-1041.47,0.00048299,37]
[325203581,1714581039952,-1041.47,0.00048299,40]
[325203582,1714581039962,-1041.47,0.00048299,43]
[325203583,1714581039972,-1041.47,0.00048299,46]
[325203584,1714581039981,-1041.47,0.00048299,49]
[325203585,1714581039990,-1041.47,0.00048299,52]
[325203586,1714581040000,-1041.47,0.00048299,55]
[325203587,1714581040009,-1041.47,0.00048299,58]
[325203588,1714581040018,-1041.47,0.00048299,61]
[325203589,1714581040028,-1041.47,0.00048299,64]
[325203590,1714581040037,-1041.47,0.00048299,64]
[325203591,1714581040047,-1041.47,0.00048299,64]
[325203592,1714581040056,-1041.47,0.00048299,64]
[325203593,1714581040065,-1041.63,0.00048299,64]
[325203594,1714581040075,-681.04,0.00048299,7]
[325203595,1714581040084,-581312.22609416,0.000483,7]
[325203596,1714581040132,-571.84,0.000483,7]
[325203604,1714581040445,-681.04,0.00048299,7]
[325203605,1714581040454,-251.23596352,0.000483,7]
[325203699,1714581111610,157.99223186,9.999e-05,2]
[325203700,1714581121820,154.82968734,9.999e-05,2]
[325203701,1714581124758,265.73519084,9.999e-05,7]
[325203702,1714581129706,208.1490103,9.999e-05,2]
[325203704,1714581278744,-165.8168504,0.00043122,52]
[325203709,1714581778321,-250.0,0.000138,2]
[325203711,1714581889207,1203.54975148,9.999e-05,2]
[325203713,1714581894284,522.20590757,9.999e-05,2]
[325203714,1714581903324,683.41665733,9.999e-05,2]
[325203715,1714581906284,154.82968734,9.999e-05,2]
[325203716,1714581949938,2084.70217973,9.999e-05,2]
[325203717,1714581951675,154.82968734,9.999e-05,2]
[325203718,1714581963694,309.64391027,9.999e-05,2]
[325203719,1714581965912,1524.64213888,9.999e-05,2]
[325203720,1714581991758,154.99687411,9.999e-05,2]
[325203722,1714582005397,291.7253838,9.999e-05,2]
[325203748,1714582232638,-154.82968734,0.00014992,2]
[325203750,1714582232648,-730.81737118,0.00014993,2]
[325203753,1714582232658,-235.8677462,0.00014994,2]
[325203755,1714582232667,-312.97578303,0.00015,2]
[325203758,1714582232676,-939.61631274,0.00015,2]
[325203761,1714582232685,-2101.71813346,0.00016484,2]
[325203764,1714582232695,-272.87483722,0.000165,2]
[325203769,1714582232960,-603.94471779,0.000185,2]
[325203772,1714582232983,-767.39052551,0.00018819,2]
[325203775,1714582232999,-160.83272,0.00019178,2]
[325203777,1714582233009,-468.87544173,0.00019553,2]
[325203779,1714582233019,-4210.26566582,0.00019652,2]
[325203781,1714582233030,-4723.21973388,0.00019652,2]
[325203783,1714582233040,-5807.75773021,0.00019652,2]
[325203785,1714582233050,-460.13643782,0.00019652,2]
[325203787,1714582233059,-1010.6628734,0.00019652,2]
[325203789,1714582233068,-309.53569955,0.00019652,2]
[325203791,1714582233077,-373.2582,0.00019653,2]
[325203793,1714582233086,-1621.73271947,0.00019653,2]
[325203795,1714582233096,-314.78574907,0.00019653,2]
[325203797,1714582233105,-1208.57172027,0.00019653,2]
[325203799,1714582233114,-524.35214253,0.00019653,2]
[325203801,1714582233124,-161.88360558,0.00019653,2]
[325203803,1714582233133,-12283.57513654,0.00019654,2]
[325203870,1714582238825,-6425.40633115,0.00019654,2]
[325203871,1714582238834,-214.93942441,0.00019654,2]
[325203872,1714582238843,-500.0,0.00019654,2]
[325203873,1714582238852,-250.20826085,0.00019654,2]
[325203874,1714582238862,-500.0,0.00019654,2]
[325203875,1714582238871,-500.0,0.00019654,2]
[325203876,1714582238882,-331.43017081,0.00019654,2]
[325203877,1714582238891,-16087.81915104,0.00019655,2]
[325203878,1714582238902,-810.98493516,0.00019655,2]
[325203899,1714582243198,-8001.1959138,0.00019655,2]
[325203901,1714582243208,-1739.43884617,0.00019999,2]
[325203903,1714582243217,-2883.55028908,0.0002,2]
[325203905,1714582243227,-241.74656629,0.0002,2]
[325203907,1714582243238,-628.72030382,0.00020911,2]
[325203910,1714582243249,-189.30063706,0.00020912,2]
[325203911,1714582243258,-161.97859023,0.00020912,2]
[325203912,1714582243267,-474.91817209,0.00020912,2]
[325203913,1714582243276,-472.12357594,0.00020912,2]
[325203914,1714582243285,-709.89305319,0.00020912,2]
[325203915,1714582243294,-154.8915759,0.00020912,2]
[325203916,1714582243303,-6132.06031256,0.00020912,2]
[325203918,1714582243313,-303.0510824,0.00020912,2]
[325203920,1714582243322,-476.16164115,0.00020912,2]
[325203921,1714582243331,-154.95481595,0.00020912,2]
[325203923,1714582243340,-154.96928135,0.00020912,2]
[325203925,1714582243350,-216.08417864,0.00020912,2]
[325203927,1714582243359,-211.60313803,0.00020912,2]
[325203928,1714582243368,-1149.70289251,0.00020912,2]
[325203929,1714582243377,-327.69814743,0.00020912,2]
[325203930,1714582243388,-1012.49812522,0.00020912,2]
[325203931,1714582243397,-747.74993229,0.00020912,2]
[325203932,1714582243406,-285.26332712,0.00020912,2]
[325203933,1714582243415,-1246.69755972,0.00020912,2]
[325203934,1714582243424,-155.39710041,0.00020912,2]
[325203935,1714582243433,-194.17909869,0.00020912,2]
[325203936,1714582243442,-1096.49359461,0.00020912,2]
[325203937,1714582243451,-158.46005998,0.00020912,2]
[325203938,1714582243461,-226.48928157,0.00020912,2]
[325203939,1714582243470,-308.8658386,0.00020912,7]
[325203940,1714582243479,-208.68971115,0.00020912,2]
[325203941,1714582243489,-213.96611033,0.00020912,2]
[325203942,1714582243665,-450.04918363,0.00020913,2]
[325203943,1714582243677,-468.8754417,0.00028174,4]
[325203944,1714582243687,-1309.2,0.000286,3]
[325203945,1714582243696,-238.46467472,0.0003,2]
[325203946,1714582243705,-447.2209758,0.00032,4]
[325203947,1714582243715,-466.46671286,0.00034,4]
[325203948,1714582243725,-597.98045973,0.00035,2]
[325203949,1714582243735,-154.82968734,0.00035,4]
[325203950,1714582243744,-196.732016,0.00035616,120]
[325203951,1714582243754,-1309.2,0.00035962,3]
[325203952,1714582243763,-1108.44070344,0.00036225,4]
[325203953,1714582243773,-468.8754417,0.00036795,8]
[325203954,1714582243782,-2049.08470554,0.00037,2]
[325203955,1714582243792,-10664.09300882,0.00037,5]
[325203956,1714582243802,-321.52307401,0.00038,30]
[325203957,1714582243811,-611.48397,0.00038846,2]
[325203958,1714582243821,-5000.0,0.00039,4]
[325203959,1714582243831,-11028.06225607,0.00039773,2]
[325203960,1714582243841,-611.48397,0.00039808,2]
[325203961,1714582243850,-167.95358533,0.00039999,31]
[325203962,1714582243859,-203.4922412,0.00039999,31]
[325203963,1714582243869,-1520.24750243,0.0004,4]
[325203964,1714582243879,-5104.97968368,0.0004,4]
[325203965,1714582243889,-611.48398,0.0004077,2]
[325203966,1714582243899,-252.7509919,0.00041,2]
[325203967,1714582243909,-581.37755277,0.00041096,31]
[325203968,1714582243919,-196.732016,0.00041553,120]
[325203969,1714582243932,-611.48397,0.00041731,2]
[325203970,1714582243941,-327.45309495,0.00041794,31]
[325203971,1714582243951,-500.0,0.00041794,31]
[325203972,1714582243960,-391.89169912,0.00041794,31]
[325203973,1714582243971,-476.28650946,0.00041794,31]
[325203974,1714582243980,-500.0,0.00041794,31]
[325203975,1714582243990,-356.54762314,0.00041794,31]
[325203976,1714582243999,-191.62089395,0.00041794,31]
[325203977,1714582244011,-5000.0,0.00041795,2]
[325203978,1714582244023,-160.83272,0.00042009,2]
[325203979,1714582244032,-154.82968734,0.0004234,10]
[325203980,1714582244042,-491.66851525,0.000425,30]
[325203981,1714582244052,-611.48398,0.00042693,2]
[325203982,1714582244062,-23117.48,0.0004289,3]
[325203983,1714582244072,-728.13540381,0.000429,42]
[325203984,1714582244082,-728.13540377,0.000429,42]
[325203985,1714582244091,-728.13540377,0.000429,42]
[325203986,1714582244100,-728.13540377,0.000429,42]
[325203987,1714582244109,-728.13540377,0.000429,42]
[325203988,1714582244119,-728.13540377,0.000429,42]
[325203989,1714582244129,-728.13540377,0.000429,42]
[325203990,1714582244138,-728.13540377,0.000429,42]
[325203991,1714582244147,-728.13540377,0.000429,42]
[325203992,1714582244157,-728.13540377,0.000429,42]
[325203993,1714582244166,-500.0,0.000429,42]
[325203994,1714582244176,-256.20966369,0.000429,42]
[325203995,1714582244185,-500.0,0.000429,42]
[325203996,1714582244194,-367.5179513,0.00042948,30]
[325203997,1714582244204,-6076.07403011,0.00043122,20]
[325203998,1714582244213,-303.86860129,0.00043122,15]
[325203999,1714582244222,-1309.2,0.00043325,3]
[325204000,1714582244232,-611.48397,0.00043654,2]
[325204001,1714582244242,-159.71048373,0.00044,120]
[325204002,1714582244252,-5000.0,0.00044248,2]
[325204003,1714582244261,-735.83553829,0.00044395,30]
[325204004,1714582244271,-611.48398,0.00044616,2]
[325204005,1714582244280,-151.0,0.00045,120]
[325204006,1714582244289,-468.8754417,0.00045416,12]
[325204007,1714582244299,-611.48397,0.00045577,2]
[325204008,1714582244308,-5000.0,0.00045585,2]
[325204009,1714582244317,-151.0,0.00045726,120]
[325204010,1714582244326,-1800.0,0.00046,120]
[325204011,1714582244336,-151.0,0.00046438,120]
[325204012,1714582244345,-611.48398,0.00046539,2]
[325204013,1714582244354,-233.46401938,0.000466,2]
[325204014,1714582244364,-493.0,0.00046873,2]
[325204015,1714582244373,-150.0,0.00046873,2]
[325204016,1714582244382,-40109.80817135,0.00047,2]
[325204017,1714582244392,-166.0,0.00047,90]
[325204018,1714582244402,-151.0,0.00047151,120]
[325204019,1714582244411,-196.732016,0.00047489,120]
[325204020,1714582244421,-611.48397,0.000475,2]
[325204021,1714582244431,-161.98182993,0.00047718,3]
[325204023,1714582244440,-151.0,0.00047863,120]
[325204025,1714582244450,-2000.0,0.00047981,2]
[325204026,1714582244459,-5000.0,0.00048081,2]
[325204027,1714582244468,-1382.16914932,0.000482,61]
[325204029,1714582244477,-6392.63974206,0.000482,5]
[325204031,1714582244494,-82495.36025794,0.000482,5]
[325204033,1714582244503,-3285.31114183,0.000483,7]
[325204038,1714582244566,-3615.35361349,0.000483,7]
[325204115,1714582258639,16106.11737102,9.999e-05,2]
[325204117,1714582272627,2957.45745495,9.999e-05,2]
[325204119,1714582427914,164.12449939,9.999e-05,2]
[325204123,1714582893013,235.8677462,9.999e-05,2]
[325204151,1714583431856,-939.61631274,0.00015,2]
[325204152,1714583431866,-2101.71813346,0.00015999,2]
[325204153,1714583431876,-9378.45996285,0.00016,2]
[325204154,1714583431885,-1378.68043058,0.0001898,2]
[325204155,1714583431894,-20200.60362902,0.00018981,2]
[325204156,1714583431904,-24900.0,0.00018982,2]
[325204157,1714583431913,-154.82968734,0.0001929,2]
[325204158,1714583431922,-154.82968734,0.0001929,2]
[325204159,1714583431931,-565.13944552,0.0001929,2]
[325204160,1714583431940,-185.6564932,0.0001929,2]
[325204161,1714583431949,-354.57887113,0.0001929,2]
[325204162,1714583431959,-1091.78088148,0.0001929,2]
[325204163,1714583431968,-263.90834832,0.0001929,2]
[325204164,1714583431977,-717.98897193,0.0001929,2]
[325204165,1714583431986,-526.99118961,0.0001929,2]
[325204166,1714583431995,-718.54795119,0.0001929,2]
[325204167,1714583432004,-309.53574583,0.00019291,2]
[325204168,1714583432013,-732.29434757,0.00019653,2]
[325204169,1714583432022,-284.9351668,0.00019654,2]
[325204170,1714583432031,-607.69827719,0.00019654,2]
[325204171,1714583432041,-208.73934857,0.00019654,2]
[325204172,1714583432050,-2414.33921056,0.0002,2]
[325204173,1714583432059,-3957.04321211,0.0002,10]
[325204174,1714583432069,-4500.0,0.0002,2]
[325204175,1714583432078,-164.00601484,0.00020912,2]
[325204176,1714583432087,-249.9357354,0.00020912,2]
[325204177,1714583432098,-1203.25513556,0.00020913,2]
[325204178,1714583432108,-36116.73741071,0.00020913,2]
[325204179,1714583432120,-455.94460599,0.00020913,2]
[325204200,1714583437933,-1825.89,0.00020913,2]
[325204202,1714583437945,-20828.16754659,0.00020913,2]
[325204204,1714583437954,-642.64775203,0.00027479,2]
[325204206,1714583437963,-12004.03722353,0.000275,2]
[325204208,1714583437972,-981.9,0.00028515,3]
[325204210,1714583437982,-662.85805754,0.000299,2]
[325204212,1714583437992,-447.2209758,0.00032,4]
[325204214,1714583438001,-466.46671286,0.00034,4]
[325204216,1714583438010,-1108.44070344,0.00035,4]
[325204218,1714583438020,-597.98045973,0.00035,2]
[325204220,1714583438030,-154.82968734,0.00035,4]
[325204222,1714583438039,-196.732016,0.00035616,120]
[325204224,1714583438049,-981.9,0.00035885,3]
[325204225,1714583438058,-5103.58039832,0.00036,2]
[325204226,1714583438068,-10664.09300882,0.00037,5]
[325204227,1714583438077,-2049.08470554,0.00037,2]
[325204228,1714583438086,-321.52307401,0.00038,30]
[325204229,1714583438095,-611.48397,0.00038846,2]
[325204230,1714583438104,-4238.26219645,0.00039,4]
[325204231,1714583438118,-761.73780355,0.00039,4]
[325204232,1714583438127,-303.86860129,0.0004,15]
[325204233,1714583438136,-1520.24750243,0.0004,4]
[325204234,1714583438145,-5104.97968368,0.0004,4]
[325204235,1714583438155,-611.48398,0.00040609,2]
[325204236,1714583438164,-252.7509919,0.00041,2]
[325204237,1714583438173,-304.079371,0.0004234,10]
[325204238,1714583438182,-611.48397,0.00042372,2]
[325204239,1714583438191,-150.0,0.00042917,2]
[325204240,1714583438199,-1500.79111425,0.00043154,30]
[325204241,1714583438208,-300.19902961,0.00043256,3]
[325204299,1714583443078,-681.70097039,0.00043256,3]
[325204300,1714583443088,-611.48398,0.00044135,2]
[325204301,1714583443097,-611.48397,0.00045898,2]
[325204302,1714583443107,-150.0,0.00045917,2]
[325204303,1714583443117,-152.70730249,0.00046597,30]
[325204305,1714583443126,-493.0,0.00046873,2]
[325204307,1714583443136,-426.34558821,0.000473,120]
[325204309,1714583443146,-611.48398,0.0004766,2]
[325204310,1714583443155,-161.98182993,0.00047718,3]
[325204311,1714583443165,-2000.0,0.000481,2]
[325204312,1714583443174,-10073.2,0.00048189,3]
[325204313,1714583443183,-2000.0,0.00048199,30]
[325204314,1714583443193,-2000.0,0.00048199,30]
[325204315,1714583443202,-2000.0,0.00048199,30]
[325204316,1714583443211,-2000.0,0.00048199,30]
[325204317,1714583443220,-1093.25432617,0.00048199,30]
[325204357,1714583891573,154.767848,0.0001,2]
[325204463,1714584632736,-24900.0,0.00019261,2]
[325204465,1714584632745,-190.1871099,0.00019454,2]
[325204467,1714584632755,-1857.37665835,0.00019629,2]
[325204469,1714584632765,-6939.61881558,0.00019728,2]
[325204471,1714584632775,-875.09143189,0.0002,10]
[325204473,1714584632787,-13426.28771639,0.0002,2]
[325204475,1714584632797,-160.83272,0.00020095,2]
[325204477,1714584632807,-249.98809231,0.00020812,2]
[325204479,1714584632817,-3778.64009824,0.00020912,2]
[325204481,1714584632826,-717.86575868,0.00020912,2]
[325204483,1714584632835,-1880.12188062,0.00020912,2]
[325204485,1714584632845,-1103.07707818,0.00020913,2]
[325204487,1714584632855,-709.85103559,0.00020913,2]
[325204489,1714584632864,-360.77095635,0.00028412,3]
[325204492,1714584632884,-375.72904365,0.00028412,3]
[325204515,1714584633096,-447.2209758,0.00032,4]
[325204517,1714584633106,-174.89287003,0.00034,4]
[325204563,1714584638364,-291.57384283,0.00034,4]
[325204564,1714584638374,-597.98045973,0.00035,2]
[325204565,1714584638384,-154.81422293,0.00035,4]
[325204566,1714584638394,-115.47370989,0.00035,4]
[325204567,1714584638406,-5801.97822278,0.00035,4]
[325204568,1714584638415,-312.02456858,0.00035,10]
[325204569,1714584638424,-214.616747,0.00035616,120]
[325204570,1714584638434,-736.5,0.00035792,3]
[325204571,1714584638443,-1108.44070344,0.00036149,4]
[325204572,1714584638453,-10664.09300882,0.00037,5]
[325204573,1714584638462,-2049.08470554,0.00037,2]
[325204574,1714584638472,-321.52307401,0.00038,30]
[325204575,1714584638481,-611.48397,0.00038829,2]
[325204576,1714584638491,-5000.0,0.00039,4]
[325204577,1714584638500,-439.44895094,0.0004,15]
[325204578,1714584638510,-418.93062108,0.0004,4]
[325204579,1714584638520,-5104.97968368,0.0004,4]
[325204580,1714584638530,-252.7509919,0.00041,2]
[325204581,1714584638544,-158.79898101,0.00041834,30]
[325204582,1714584638554,-611.48398,0.00042357,2]
[325204583,1714584638566,-736.5,0.00043171,3]
[325204584,1714584638575,-158.79898101,0.00045347,30]
[325204585,1714584638585,-611.48397,0.00045886,2]
[325204586,1714584638595,-150.0,0.00046727,2]
[325204587,1714584638605,-150.0,0.00047,120]
[325204588,1714584638614,-306.0,0.00047112,2]
[325204589,1714584638624,-161.98182993,0.00047718,3]
[325204590,1714584638637,-152.70730249,0.00047864,30]
[325204591,1714584638647,-422.70056757,0.00047865,31]
[325204592,1714584638657,-469.17366761,0.00047865,120]
[325204593,1714584638667,-10000.0,0.00047866,120]
[325204594,1714584638677,-2000.0,0.000481,2]
[325204595,1714584638686,-999.0,0.00048199,7]
[325204596,1714584638695,-999.0,0.00048199,10]
[325204597,1714584638705,-999.0,0.00048199,13]
[325204598,1714584638716,-999.0,0.00048199,16]
[325204599,1714584638727,-999.0,0.00048199,19]
[325204600,1714584638737,-999.0,0.00048199,22]
[325204601,1714584638746,-88888.0,0.000482,5]
[325204602,1714584638757,-1000.0,0.000482,30]
[325204603,1714584638766,-2000.0,0.00048299,30]
[325204604,1714584638775,-2000.0,0.00048299,30]
[325204605,1714584638786,-2000.0,0.00048299,30]
[325204606,1714584638796,-2000.0,0.00048299,30]
[325204607,1714584638806,-2000.0,0.00048299,30]
[325204608,1714584638816,-2000.0,0.00048299,30]
[325204609,1714584638825,-2000.0,0.00048299,30]
[325204610,1714584638834,-2000.0,0.00048299,30]
[325204611,1714584638844,-2000.0,0.00048299,30]
[325204612,1714584638853,-2000.0,0.00048299,30]
[325204613,1714584638862,-2083.67893707,0.00048299,30]
[325204614,1714584638871,-822.93,0.00048299,25]
[325204615,1714584638880,-3455.42287329,0.000483,61]
[325204616,1714584638889,-258853.23247289,0.000483,7]
[325204617,1714584638898,-151.0,0.00048575,120]
[325204618,1714584638907,-10000.0,0.00048776,120]
[325204619,1714584638916,-355.26735292,0.00048954,30]
[325204620,1714584638926,-24866.20766073,0.00049,10]
[325204621,1714584638935,-1000.0,0.00049,49]
[325204622,1714584638944,-157.58265447,0.00049,2]
[325204623,1714584638953,-151.0,0.00049288,120]
[325204624,1714584638962,-2520.44707597,0.00049315,120]
[325204625,1714584638972,-10000.0,0.00049366,120]
[325204626,1714584638981,-611.48398,0.00049414,2]
[325204627,1714584638991,-580.60326488,0.0004949,30]
[325204628,1714584639000,-150.0,0.00049727,2]
[325204629,1714584639009,-5000.0,0.00049842,2]
[325204630,1714584639019,-238.302832,0.00049863,2]
[325204631,1714584639028,-165.846667,0.00049863,2]
[325204632,1714584639040,-445.3585,0.00049863,2]
[325204633,1714584639050,-447.070885,0.00049863,2]
[325204634,1714584639059,-350.0,0.0005,7]
[325204635,1714584639068,-879.94320873,0.0005,15]
[325204636,1714584639076,-10000.0,0.0005,2]
[325204637,1714584639086,-960.60835328,0.0005,60]
[325204638,1714584639096,-154.86062544,0.0005,30]
[325204639,1714584639105,-1000.0,0.0005,120]
[325204640,1714584639114,-486.33472313,0.0005,14]
[325204641,1714584639123,-151.0,0.0005,120]
[325204642,1714584639133,-499.87,0.0005,120]
[325204643,1714584639142,-2692.10080689,0.00050382,120]
[325204644,1714584639151,-736.5,0.00050551,3]
[325204645,1714584639159,-203.8574549,0.00050685,2]
[325204646,1714584639169,-203.8574549,0.00050685,2]
[325204647,1714584639178,-151.0,0.00050712,120]
[325204648,1714584639187,-304.986255,0.00050772,30]
[325204649,1714584639196,-151.0,0.00050772,7]
[325204650,1714584639205,-235.811645,0.00050772,7]
[325204651,1714584639215,-235.811645,0.00050772,7]
[325204652,1714584639224,-151.0,0.00050772,7]
[325204653,1714584639233,-568.655142,0.00050772,7]
[325204654,1714584639242,-568.655142,0.00050772,7]
[325204655,1714584639251,-151.0,0.00050772,7]
[325204656,1714584639261,-151.0,0.00050772,7]
[325204657,1714584639270,-151.0,0.00050772,7]
[325204658,1714584639279,-915.284392,0.00050772,7]
[325204659,1714584639292,-915.284392,0.00050772,7]
[325204660,1714584639301,-269.710465,0.00050772,7]
[325204661,1714584639310,-269.710465,0.00050772,7]
[325204662,1714584639319,-203.8574549,0.00050959,2]
[325204663,1714584639328,-203.8574549,0.00050959,2]
[325204664,1714584639338,-203.8574549,0.00050959,2]
[325204665,1714584639347,-203.8574549,0.00050959,2]
[325204666,1714584639356,-19249.54312608,0.00051,30]
[325204674,1714584640452,-500.29980289,0.00051,30]
[325204739,1714584646325,-588.0,0.000482,30]
[325204740,1714584646334,-393.76165648,0.00051,30]
[325204741,1714584646356,-2685.96134585,0.00051,30]
[325204853,1714585833255,-189.06464916,0.00019354,2]
[325204854,1714585833264,-140.09857916,0.00020195,2]
[325204855,1714585833275,-20.73414084,0.00020195,2]
[325204856,1714585833284,-169.82758292,0.00020813,2]
[325204857,1714585833294,-1091.78088148,0.00020817,2]
[325204858,1714585833303,-200.0,0.00020818,2]
[325204859,1714585833312,-1554.71848456,0.00020819,2]